lending/lending_fUSD_20251124
["ID","MTS","AMOUNT","RATE_DAILY","PERIOD"]
[394788106,1763949039909,-500.0,0.00038273,5]
[394788107,1763949039918,-500.0,0.00038273,5]
[394788108,1763949039928,-500.76126021,0.00038273,5]
[394788109,1763949039937,-16504.76645236,0.00038331,30]
[394788110,1763949039947,-512.62008311,0.00038355,8]
[394788111,1763949039956,-500.0,0.00038355,8]
[394788112,1763949039965,-500.0,0.00038355,8]
[394788113,1763949039974,-500.0,0.00038355,8]
[394788114,1763949039984,-500.0,0.00038355,7]
[394788115,1763949039995,-500.0,0.00038355,2]
[394788116,1763949040005,-270.771238,0.00038356,8]
[394788117,1763949040014,-501.26063955,0.00038356,8]
[394788118,1763949040024,-501.61173428,0.00038356,8]
[394788119,1763949040036,-501.32558539,0.00038356,8]
[394788120,1763949040045,-502.21073516,0.00038356,8]
[394788121,1763949040055,-502.82331308,0.00038356,8]
[394788122,1763949040066,-501.27125163,0.00038356,2]
[394788123,1763949040075,-503.0927236,0.00038356,8]
[394788124,1763949040085,-502.44639571,0.00038356,8]
[394788125,1763949040095,-406.38653388,0.00038356,8]
[394788126,1763949040104,-500.0,0.00038356,8]
[394788127,1763949040116,-516.04581981,0.00038356,8]
[394788128,1763949040125,-519.13638322,0.00038356,8]
[394788129,1763949040134,-503.13168756,0.00038356,8]
[394788130,1763949040144,-621.20164704,0.00038356,8]
[394788131,1763949040154,-503.47696841,0.00038356,8]
[394788132,1763949040163,-502.5682983,0.00038356,8]
[394788133,1763949040173,-630.87231798,0.00038356,8]
[394788134,1763949040182,-501.40394797,0.00038356,8]
[394788135,1763949040192,-524.32725887,0.00038356,8]
[394788136,1763949040201,-513.62362502,0.00038356,8]
[394788137,1763949040211,-506.55202958,0.00038356,8]
[394788138,1763949040221,-502.77370423,0.00038356,8]
[394788139,1763949040230,-506.05990184,0.00038356,8]
[394788140,1763949040239,-509.59056218,0.00038356,8]
[394788141,1763949040249,-502.09310886,0.00038356,8]
[394788142,1763949040258,-500.0,0.00038356,8]
[394788143,1763949040268,-508.9303955,0.00038356,8]
[394788144,1763949040277,-500.9751215,0.00038356,7]
[394788145,1763949040287,-505.39708877,0.00038356,8]
[394788146,1763949040296,-515.50958128,0.00038356,8]
[394788147,1763949040305,-505.28203923,0.00038356,8]
[394788148,1763949040315,-233.0731005,0.00038356,8]
[394788149,1763949040324,-502.25601165,0.00038356,8]
[394788150,1763949040333,-532.50219232,0.00038356,8]
[394788151,1763949040342,-500.0,0.00038356,8]
[394788152,1763949040351,-513.34120439,0.00038356,8]
[394788153,1763949040360,-503.12010152,0.00038356,8]
[394788154,1763949040370,-511.17528348,0.00038356,8]
[394788155,1763949040379,-510.96685744,0.00038356,8]
[394788156,1763949040389,-508.90005356,0.00038356,8]
[394788158,1763949040398,-504.10864684,0.00038356,8]
[394788159,1763949040407,-522.51525579,0.00038356,8]
[394788160,1763949040416,-508.89150788,0.00038356,8]
[394788161,1763949040424,-507.444734,0.00038356,8]
[394788162,1763949040433,-504.68203625,0.00038356,8]
[394788163,1763949040442,-510.02541627,0.00038356,8]
[394788164,1763949040451,-507.98922839,0.00038356,8]
[394788165,1763949040460,-514.85139544,0.00038356,8]
[394788166,1763949040469,-504.12646639,0.00038356,8]
[394788167,1763949040479,-509.55913161,0.00038356,8]
[394788168,1763949040487,-528.64458268,0.00038356,8]
[394788169,1763949040498,-508.3318158,0.00038356,8]
[394788170,1763949040507,-503.48712754,0.00038356,8]
[394788171,1763949040515,-505.27838094,0.00038356,8]
[394788172,1763949040524,-508.02619661,0.00038356,8]
[394788173,1763949040533,-508.16791557,0.00038356,8]
[394788174,1763949040542,-575.65479981,0.00038356,8]
[394788175,1763949040551,-504.67904406,0.00038356,8]
[394788176,1763949040560,-503.63171019,0.00038356,2]
[394788177,1763949040569,-500.0,0.00038356,8]
[394788178,1763949040578,-504.68405134,0.00038356,8]
[394788179,1763949040587,-286.26072373,0.00038356,8]
[394788180,1763949040596,-504.20522262,0.00038356,8]
[394788181,1763949040605,-516.80114062,0.00038356,8]
[394788182,1763949040614,-509.81469077,0.00038356,8]
[394788183,1763949040623,-522.18673471,0.00038356,8]
[394788184,1763949040633,-503.01503831,0.00038356,8]
[394788185,1763949040642,-559.77411281,0.00038356,8]
[394788186,1763949040651,-506.47890686,0.00038356,8]
[394788187,1763949040661,-500.0,0.00038356,8]
[394788188,1763949040670,-502.93739717,0.00038356,8]
[394788189,1763949040680,-211.51214402,0.00038356,8]
[394788190,1763949040690,-565.18772834,0.00038356,8]
[394788191,1763949040699,-559.98409727,0.00038356,8]
[394788192,1763949040710,-532.73433483,0.00038356,8]
[394788193,1763949040719,-299.75222076,0.00038356,8]
[394788194,1763949040729,-500.0,0.00038356,8]
[394788195,1763949040738,-522.61416747,0.00038356,8]
[394788196,1763949040748,-502.88059934,0.00038356,8]
[394788197,1763949040757,-500.0,0.00038356,8]
[394788198,1763949040766,-547.87184885,0.00038356,8]
[394788199,1763949040777,-500.0,0.00038356,8]
[394788200,1763949040787,-500.0,0.00038356,8]
[394788201,1763949040796,-513.65601158,0.00038356,8]
[394788202,1763949040805,-151.20124816,0.00038356,8]
[394788203,1763949040814,-500.0,0.00038356,8]
[394788204,1763949040824,-507.22734197,0.00038356,8]
[394788205,1763949040834,-543.8893263,0.00038356,8]
[394788206,1763949040843,-502.03540075,0.00038356,8]
[394788207,1763949040852,-543.17144259,0.00038356,8]
[394788208,1763949040862,-501.31665986,0.00038356,8]
[394788209,1763949040871,-500.0,0.00038356,8]
[394788210,1763949040881,-500.0,0.00038356,8]
[394788211,1763949040892,-570.60351868,0.00038356,8]
[394788212,1763949040902,-500.0,0.00038356,8]
[394788213,1763949040911,-540.33369611,0.00038356,8]
[394788214,1763949040920,-508.45342089,0.00038356,8]
[394788215,1763949040930,-504.08916528,0.00038356,8]
[394788216,1763949040939,-500.0,0.00038356,8]
[394788217,1763949040949,-542.95833541,0.00038356,8]
[394788218,1763949040959,-555.8250653,0.00038356,8]
[394788219,1763949040969,-513.01873749,0.00038356,8]
[394788220,1763949040978,-422.14132612,0.00038356,8]
[394788221,1763949040988,-529.16166963,0.00038356,8]
[394788222,1763949040999,-550.99070966,0.00038356,8]
[394788223,1763949041008,-500.0,0.00038356,8]
[394788224,1763949041017,-529.85572175,0.00038356,8]
[394788225,1763949041031,-1000.0,0.00038356,120]
[394788226,1763949041040,-509.12716647,0.00038356,8]
[394788227,1763949041050,-503.9887768,0.00038356,8]
[394788228,1763949041060,-500.0,0.00038356,8]
[394788229,1763949041070,-564.34048509,0.00038356,8]
[394788230,1763949041080,-508.6078754,0.00038356,8]
[394788231,1763949041089,-505.33014869,0.00038356,8]
[394788232,1763949041099,-514.71213153,0.00038356,8]
[394788233,1763949041111,-500.0,0.00038356,8]
[394788234,1763949041120,-500.0,0.00038356,8]
[394788235,1763949041130,-637.05114677,0.00038356,8]
[394788236,1763949041139,-523.14033627,0.00038356,8]
[394788237,1763949041149,-503.57332798,0.00038356,8]
[394788238,1763949041300,-500.0,0.00038356,8]
[394788239,1763949041310,-500.0,0.00038356,8]
[394788240,1763949041319,-536.14314324,0.00038356,8]
[394788241,1763949041329,-512.09517694,0.00038356,8]
[394788242,1763949041338,-504.77085177,0.00038356,8]
[394788243,1763949041347,-575.69876559,0.00038356,8]
[394788244,1763949041355,-573.76829835,0.00038356,8]
[394788245,1763949041365,-213.4881535,0.00038356,8]
[394788246,1763949041375,-500.0,0.00038356,8]
[394788247,1763949041384,-500.0,0.00038356,8]
[394788248,1763949041393,-533.4731181,0.00038356,8]
[394788249,1763949041402,-500.0,0.00038356,8]
[394788250,1763949041411,-536.92880116,0.00038356,8]
[394788251,1763949041420,-500.0,0.00038356,8]
[394788252,1763949041432,-500.0,0.00038356,8]
[394788253,1763949041442,-500.0,0.00038356,8]
[394788254,1763949041450,-505.3895348,0.00038356,8]
[394788255,1763949041460,-538.42,0.00038356,8]
[394788256,1763949041469,-503.55653056,0.00038356,8]
[394788257,1763949041478,-500.0,0.00038356,8]
[394788258,1763949041488,-504.27213124,0.00038356,8]
[394788259,1763949041498,-523.24425475,0.00038356,8]
[394788260,1763949041507,-500.0,0.00038356,8]
[394788261,1763949041517,-519.38714482,0.00038356,8]
[394788262,1763949041526,-500.0,0.00038356,8]
[394788263,1763949041536,-535.89050389,0.00038356,8]
[394788264,1763949041545,-535.13289303,0.00038356,8]
[394788265,1763949041554,-500.0,0.00038356,8]
[394788266,1763949041563,-541.46607761,0.00038356,8]
[394788267,1763949041572,-514.79160526,0.00038356,8]
[394788268,1763949041581,-533.1154583,0.00038356,8]
[394788269,1763949041590,-500.0,0.00038356,8]
[394788270,1763949041601,-508.36632503,0.00038356,8]
[394788271,1763949041611,-607.40847454,0.00038356,8]
[394788272,1763949041620,-214.63482776,0.00038356,8]
[394788273,1763949041629,-191.6963164,0.00038356,8]
[394788274,1763949041639,-500.0,0.00038356,8]
[394788275,1763949041649,-413.87990678,0.00038356,8]
[394788276,1763949041658,-198.4071392,0.00038356,8]
[394788277,1763949041667,-500.0,0.00038356,8]
[394788278,1763949041676,-500.0,0.00038356,8]
[394788279,1763949041685,-512.48613381,0.00038356,8]
[394788280,1763949041695,-572.77509088,0.00038356,8]
[394788281,1763949041704,-500.0,0.00038356,8]
[394788282,1763949041713,-500.0,0.00038356,8]
[394788283,1763949041722,-632.64305517,0.00038356,8]
[394788284,1763949041731,-204.55105365,0.00038356,8]
[394788285,1763949041740,-630.90823755,0.00038356,8]
[394788286,1763949041750,-293.18925999,0.00038356,8]
[394788287,1763949041759,-268.84382324,0.00038356,8]
[394788288,1763949041768,-500.0,0.00038356,8]
[394788289,1763949041778,-500.0,0.00038356,8]
[394788290,1763949041788,-500.0,0.00038356,8]
[394788291,1763949041797,-203.07626757,0.00038356,8]
[394788292,1763949041807,-500.0,0.00038356,8]
[394788293,1763949041816,-500.63944399,0.00038356,8]
[394788294,1763949041826,-500.0,0.00038356,8]
[394788295,1763949041835,-475.33168135,0.00038356,8]
[394788296,1763949041844,-500.0,0.00038356,8]
[394788297,1763949041852,-502.95681991,0.00038356,8]
[394788298,1763949041862,-500.0,0.00038356,8]
[394788299,1763949041871,-500.0,0.00038356,8]
[394788300,1763949041880,-506.75582342,0.00038356,8]
[394788301,1763949041890,-799.54,0.00038356,8]
[394788302,1763949041900,-500.0,0.00038356,8]
[394788303,1763949041911,-214.80446368,0.00038356,8]
[394788304,1763949041921,-500.0,0.00038356,8]
[394788305,1763949041930,-520.71237317,0.00038356,8]
[394788306,1763949041940,-524.79949522,0.00038356,8]
[394788307,1763949041950,-191.93493464,0.00038356,8]
[394788308,1763949041959,-500.0,0.00038356,8]
[394788309,1763949041968,-500.0,0.00038356,8]
[394788310,1763949041979,-500.0,0.00038356,8]
[394788311,1763949041989,-506.31625184,0.00038356,8]
[394788312,1763949041999,-500.0,0.00038356,8]
[394788313,1763949042009,-505.86987635,0.00038356,8]
[394788314,1763949042018,-503.25875201,0.00038356,8]
[394788315,1763949042029,-500.0,0.00038356,8]
[394788316,1763949042042,-500.0,0.00038356,8]
[394788317,1763949042051,-372.97392781,0.00038356,8]
[394788318,1763949042061,-500.0,0.00038356,8]
[394788319,1763949042070,-500.0,0.00038356,8]
[394788320,1763949042081,-503.53507672,0.00038356,8]
[394788321,1763949042090,-570.31029809,0.00038356,8]
[394788322,1763949042100,-592.69823382,0.00038356,8]
[394788323,1763949042110,-573.33434789,0.00038356,8]
[394788324,1763949042121,-604.06277047,0.00038356,8]
[394788325,1763949042130,-505.81014751,0.00038356,8]
[394788326,1763949042140,-590.1756813,0.00038356,8]
[394788327,1763949042151,-500.0,0.00038356,8]
[394788328,1763949042161,-500.0,0.00038356,8]
[394788329,1763949042171,-500.0,0.00038356,8]
[394788330,1763949042181,-506.36696655,0.00038356,8]
[394788331,1763949042190,-500.0,0.00038356,8]
[394788332,1763949042200,-565.12762566,0.00038356,8]
[394788333,1763949042210,-502.76468932,0.00038356,8]
[394788334,1763949042220,-500.0,0.00038356,8]
[394788335,1763949042229,-209.53959515,0.00038356,8]
[394788336,1763949042239,-533.50080628,0.00038356,8]
[394788337,1763949042250,-500.0,0.00038356,8]
[394788338,1763949042259,-503.97343473,0.00038356,8]
[394788339,1763949042269,-549.28357282,0.00038356,8]
[394788340,1763949042279,-500.0,0.00038356,8]
[394788341,1763949042288,-500.0,0.00038356,8]
[394788342,1763949042298,-503.52457117,0.00038356,8]
[394788343,1763949042307,-362.93418085,0.00038356,8]
[394788344,1763949042317,-500.0,0.00038356,2]
[394788345,1763949042326,-256.29557933,0.00038356,2]
[394788346,1763949042336,-527.95769465,0.00038356,8]
[394788347,1763949042345,-500.0,0.00038356,8]
[394788348,1763949042355,-598.07595626,0.00038356,8]
[394788349,1763949042364,-550.98810803,0.00038356,8]
[394788350,1763949042374,-504.25783632,0.00038356,8]
[394788351,1763949042383,-505.70650122,0.00038356,8]
[394788352,1763949042392,-500.0,0.00038356,8]
[394788353,1763949042402,-542.27487975,0.00038356,8]
[394788354,1763949042412,-342.54711707,0.00038356,8]
[394788355,1763949042421,-507.30265916,0.00038356,8]
[394788356,1763949042430,-500.0,0.00038356,8]
[394788357,1763949042439,-563.07574951,0.00038356,8]
[394788358,1763949042448,-500.0,0.00038356,8]
[394788359,1763949042457,-500.0,0.00038356,8]
[394788360,1763949042466,-505.15368928,0.00038356,8]
[394788361,1763949042475,-502.77394047,0.00038356,8]
[394788362,1763949042484,-531.30608747,0.00038356,8]
[394788363,1763949042494,-500.0,0.00038356,8]
[394788364,1763949042503,-506.84525032,0.00038356,8]
[394788365,1763949042513,-502.48825838,0.00038356,8]
[394788366,1763949042522,-500.0,0.00038356,8]
[394788367,1763949042531,-554.83760292,0.00038356,8]
[394788368,1763949042541,-503.03614785,0.00038356,8]
[394788369,1763949042550,-500.0,0.00038356,8]
[394788370,1763949042559,-602.87589577,0.00038356,8]
[394788371,1763949042569,-500.0,0.00038356,8]
[394788373,1763949042578,-1024.09,0.00038356,8]
[394788374,1763949042587,-530.42772228,0.00038356,8]
[394788375,1763949042596,-500.0,0.00038356,8]
[394788377,1763949042606,-502.0831892,0.00038356,8]
[394788378,1763949042615,-500.0,0.00038356,8]
[394788379,1763949042624,-505.49823836,0.00038356,8]
[394788380,1763949042634,-172.38378978,0.00038356,8]
[394788381,1763949042643,-267.29645112,0.00038356,8]
[394788382,1763949042653,-500.0,0.00038356,8]
[394788383,1763949042663,-539.54059314,0.00038356,8]
[394788384,1763949042674,-175.01456298,0.00038356,8]
[394788385,1763949042684,-500.0,0.00038356,8]
[394788386,1763949042695,-632.47956311,0.00038356,8]
[394788387,1763949042705,-503.27981854,0.00038356,8]
[394788388,1763949042715,-502.39658189,0.00038356,8]
[394788389,1763949042725,-505.8215855,0.00038356,8]
[394788390,1763949042734,-500.0,0.00038356,8]
[394788391,1763949042744,-508.86532975,0.00038356,8]
[394788392,1763949042754,-619.11726001,0.00038356,8]
[394788393,1763949042763,-527.7078337,0.00038356,8]
[394788394,1763949042772,-500.0,0.00038356,8]
[394788395,1763949042782,-500.0,0.00038356,8]
[394788396,1763949042792,-505.4043989,0.00038356,8]
[394788397,1763949042802,-549.57755246,0.00038356,8]
[394788398,1763949042812,-525.588555,0.00038356,8]
[394788399,1763949042821,-528.43807309,0.00038356,8]
[394788400,1763949042831,-500.0,0.00038356,8]
[394788401,1763949042840,-505.95785517,0.00038356,8]
[394788402,1763949042849,-503.64500947,0.00038356,8]
[394788403,1763949042859,-569.55605937,0.00038356,8]
[394788404,1763949042868,-503.66479021,0.00038356,8]
[394788405,1763949042877,-500.0,0.00038356,8]
[394788406,1763949042887,-500.0,0.00038356,8]
[394788407,1763949042896,-503.36582466,0.00038356,8]
[394788408,1763949042906,-500.0,0.00038356,8]
[394788409,1763949042915,-500.0,0.00038356,8]
[394788410,1763949042924,-534.11375138,0.00038356,8]
[394788411,1763949042934,-500.0,0.00038356,8]
[394788412,1763949042943,-500.0,0.00038356,8]
[394788413,1763949042953,-505.46149465,0.00038356,8]
[394788414,1763949042963,-500.0,0.00038356,8]
[394788415,1763949042972,-500.0,0.00038356,8]
[394788416,1763949042981,-506.15204063,0.00038356,8]
[394788417,1763949042991,-500.0,0.00038356,8]
[394788418,1763949043001,-500.0,0.00038356,8]
[394788419,1763949043011,-500.0,0.00038356,8]
[394788420,1763949043021,-500.0,0.00038356,8]
[394788421,1763949043031,-500.0,0.00038356,8]
[394788422,1763949043046,-500.0,0.00038356,8]
[394788423,1763949043055,-500.0,0.00038356,8]
[394788424,1763949043066,-500.0,0.00038356,8]
[394788425,1763949043076,-299.1870723,0.00038356,8]
[394788426,1763949043085,-500.0,0.00038356,8]
[394788427,1763949043095,-500.0,0.00038356,8]
[394788428,1763949043104,-509.84098825,0.00038356,8]
[394788429,1763949043115,-500.0,0.00038356,8]
[394788430,1763949043125,-500.0,0.00038356,8]
[394788431,1763949043134,-500.0,0.00038356,8]
[394788432,1763949043144,-617.46820752,0.00038356,8]
[394788433,1763949043154,-500.0,0.00038356,8]
[394788434,1763949043164,-500.0,0.00038356,8]
[394788435,1763949043174,-500.0,0.00038356,8]
[394788436,1763949043184,-500.0,0.00038356,8]
[394788437,1763949043195,-502.34749315,0.00038356,8]
[394788438,1763949043204,-502.13511651,0.00038356,8]
[394788439,1763949043214,-506.94901486,0.00038356,8]
[394788440,1763949043223,-500.0,0.00038356,8]
[394788441,1763949043232,-500.0,0.00038356,8]
[394788442,1763949043242,-500.0,0.00038356,8]
[394788443,1763949043255,-504.03642207,0.00038356,8]
[394788444,1763949043264,-467.31582032,0.00038356,8]
[394788445,1763949043274,-500.0,0.00038356,8]
[394788446,1763949043284,-500.0,0.00038356,8]
[394788447,1763949043293,-507.48291135,0.00038356,8]
[394788448,1763949043303,-500.0,0.00038356,8]
[394788449,1763949043313,-500.0,0.00038356,8]
[394788450,1763949043322,-500.0,0.00038356,8]
[394788451,1763949043333,-500.0,0.00038356,8]
[394788452,1763949043343,-508.03157808,0.00038356,8]
[394788453,1763949043352,-512.22955344,0.00038356,8]
[394788454,1763949043362,-595.76676179,0.00038356,8]
[394788455,1763949043372,-300.0,0.00038356,2]
[394788456,1763949043382,-500.0,0.00038356,8]
[394788457,1763949043391,-551.78924854,0.00038356,8]
[394788458,1763949043400,-506.53318551,0.00038356,8]
[394788459,1763949043410,-500.0,0.00038356,8]
[394788460,1763949043419,-606.87572638,0.00038356,8]
[394788461,1763949043428,-501.47628813,0.00038356,8]
[394788462,1763949043437,-500.0,0.00038356,8]
[394788463,1763949043446,-500.0,0.00038356,8]
[394788464,1763949043455,-380.43405604,0.00038356,8]
[394788465,1763949043465,-504.52892382,0.00038356,8]
[394788466,1763949043474,-501.16749386,0.00038356,8]
[394788467,1763949043484,-500.0,0.00038356,8]
[394788468,1763949043496,-1000.0,0.00038356,8]
[394788469,1763949043505,-500.0,0.00038356,8]
[394788470,1763949043515,-509.85526562,0.00038356,8]
[394788471,1763949043524,-540.07446429,0.00038356,8]
[394788472,1763949043533,-500.0,0.00038356,8]
[394788473,1763949043543,-500.0,0.00038356,8]
[394788474,1763949043552,-500.0,0.00038356,8]
[394788475,1763949043561,-502.69350681,0.00038356,8]
[394788476,1763949043571,-577.42056073,0.00038356,8]
[394788477,1763949043580,-500.0,0.00038356,8]
[394788478,1763949043590,-501.91711362,0.00038356,8]
[394788479,1763949043599,-510.41952583,0.00038356,8]
[394788480,1763949043608,-500.0,0.00038356,8]
[394788481,1763949043619,-261.912654,0.00038356,8]
[394788482,1763949043628,-438.85120509,0.00038356,8]
[394788483,1763949043637,-506.36327147,0.00038356,8]
[394788484,1763949043646,-273.87353971,0.00038356,8]
[394788485,1763949043656,-552.72571091,0.00038356,8]
[394788486,1763949043665,-502.09141129,0.00038356,8]
[394788487,1763949043674,-529.30461804,0.00038356,8]
[394788488,1763949043688,-504.25965622,0.00038356,8]
[394788489,1763949043697,-600.0,0.00038356,30]
[394788490,1763949043707,-1027.90993484,0.00038383,120]
[394788491,1763949043751,-168.0,0.00038406,7]
[394788492,1763949043762,-4034.77,0.00038437,2]
[394788493,1763949043771,-3506.18369606,0.0003846,2]
[394788494,1763949043781,-6205.33072545,0.0003846,2]
[394788495,1763949043793,-1000.0,0.00038477,120]
[394788496,1763949043802,-959.67,0.00038519,30]
[394788497,1763949043812,-522.3509747,0.00038547,2]
[394788498,1763949043822,-284.58671961,0.0003863,8]
[394788499,1763949043831,-500.0,0.0003863,8]
[394788500,1763949043840,-539.27366182,0.0003863,8]
[394788501,1763949043851,-500.0,0.0003863,8]
[394788502,1763949043860,-510.11547349,0.0003863,8]
[394788503,1763949043870,-518.31096518,0.0003863,8]
[394788504,1763949043880,-503.90547443,0.0003863,8]
[394788505,1763949043889,-581.15134573,0.0003863,8]
[394788506,1763949043899,-500.0,0.0003863,8]
[394788507,1763949043908,-530.58189506,0.0003863,8]
[394788508,1763949043918,-507.9008691,0.0003863,8]
[394788509,1763949043928,-505.93603446,0.0003863,8]
[394788510,1763949043938,-538.42,0.0003863,8]
[394788511,1763949043947,-514.34119076,0.0003863,8]
[394788512,1763949043956,-507.58627712,0.0003863,8]
[394788513,1763949043965,-500.0,0.0003863,8]
[394788514,1763949043975,-500.0,0.0003863,8]
[394788515,1763949043985,-508.21679249,0.0003863,8]
[394788516,1763949043994,-291.68350254,0.0003863,8]
[394788517,1763949044004,-500.0,0.0003863,8]
[394788518,1763949044013,-282.76397321,0.0003863,8]
[394788519,1763949044022,-303.32710983,0.0003863,8]
[394788520,1763949044035,-506.22576408,0.0003863,8]
[394788521,1763949044045,-500.0,0.0003863,8]
[394788522,1763949044054,-500.0,0.0003863,8]
[394788523,1763949044063,-500.0,0.0003863,8]
[394788524,1763949044074,-500.0,0.0003863,8]
[394788525,1763949044084,-201.12766086,0.0003863,8]
[394788526,1763949044093,-500.0,0.0003863,8]
[394788527,1763949044103,-253.13841791,0.0003863,8]
[394788528,1763949044115,-799.54,0.0003863,8]
[394788529,1763949044124,-500.0,0.0003863,8]
[394788530,1763949044133,-500.0,0.0003863,8]
[394788531,1763949044142,-500.0,0.0003863,8]
[394788532,1763949044152,-328.65347602,0.0003863,8]
[394788533,1763949044162,-512.44731669,0.0003863,8]
[394788534,1763949044171,-153.066656,0.0003863,120]
[394788535,1763949044180,-500.0,0.0003863,8]
[394788536,1763949044190,-593.02796394,0.0003863,8]
[394788537,1763949044200,-500.0,0.0003863,8]
[394788538,1763949044210,-153.941464,0.0003863,120]
[394788539,1763949044220,-277.60360969,0.0003863,8]
[394788540,1763949044229,-151.0,0.0003863,30]
[394788541,1763949044239,-274.04526821,0.0003863,8]
[394788542,1763949044249,-279.076884,0.0003863,120]
[394788543,1763949044258,-151.0,0.0003863,120]
[394788544,1763949044268,-279.076884,0.0003863,120]
[394788545,1763949044278,-151.0,0.0003863,120]
[394788546,1763949044288,-189.59211853,0.0003863,8]
[394788547,1763949044297,-312.93706824,0.0003863,8]
[394788548,1763949044307,-279.076884,0.0003863,120]
[394788549,1763949044326,-500.0,0.0003863,8]
[394788550,1763949044336,-279.076884,0.0003863,120]
[394788551,1763949044346,-337.362677,0.0003863,120]
[394788552,1763949044355,-337.362677,0.0003863,120]
[394788553,1763949044365,-500.0,0.0003863,8]
[394788554,1763949044375,-337.362677,0.0003863,120]
[394788555,1763949044384,-196.65616915,0.0003863,8]
[394788556,1763949044393,-337.362677,0.0003863,120]
[394788557,1763949044403,-500.0,0.0003863,8]
[394788558,1763949044412,-526.17488057,0.0003863,8]
[394788559,1763949044428,-503.69670532,0.0003863,8]
[394788560,1763949044438,-503.30554788,0.0003863,8]
[394788561,1763949044447,-179.25001141,0.0003863,8]
[394788562,1763949044456,-500.0,0.0003863,8]
[394788563,1763949044465,-500.0,0.0003863,8]
[394788564,1763949044474,-502.42036357,0.0003863,8]
[394788565,1763949044484,-162.605821,0.0003863,120]
[394788566,1763949044493,-520.2667676,0.0003863,8]
[394788567,1763949044503,-511.03643107,0.0003863,8]
[394788568,1763949044513,-505.15646124,0.0003863,8]
[394788569,1763949044522,-500.0,0.0003863,8]
[394788570,1763949044531,-1024.09,0.0003863,8]
[394788571,1763949044541,-506.11818259,0.0003863,8]
[394788572,1763949044550,-620.11008721,0.0003863,8]
[394788573,1763949044559,-500.0,0.0003863,8]
[394788574,1763949044569,-500.0,0.0003863,8]
[394788575,1763949044578,-157.10363,0.0003863,120]
[394788576,1763949044588,-151.26781826,0.0003863,8]
[394788577,1763949044597,-151.0,0.0003863,120]
[394788578,1763949044606,-151.0,0.0003863,120]
[394788579,1763949044615,-500.0,0.0003863,8]
[394788580,1763949044627,-500.0,0.0003863,8]
[394788581,1763949044640,-352.11673015,0.0003863,8]
[394788582,1763949044650,-151.0,0.0003863,120]
[394788583,1763949044659,-151.0,0.0003863,120]
[394788584,1763949044668,-160.59977361,0.0003863,8]
[394788585,1763949044677,-500.0,0.0003863,8]
[394788586,1763949044687,-194.81400507,0.0003863,8]
[394788587,1763949044696,-575.225091,0.0003863,30]
[394788588,1763949044705,-152.018168,0.0003863,120]
[394788589,1763949044715,-500.0,0.0003863,8]
[394788590,1763949044724,-575.225091,0.0003863,30]
[394788591,1763949044734,-590.61038878,0.0003863,8]
[394788592,1763949044744,-575.225091,0.0003863,30]
[394788593,1763949044755,-500.0,0.0003863,8]
[394788594,1763949044764,-575.225091,0.0003863,30]
[394788595,1763949044774,-500.0,0.0003863,8]
[394788596,1763949044783,-154.271817,0.0003863,7]
[394788597,1763949044792,-503.72640452,0.0003863,8]
[394788598,1763949044802,-562.5039476,0.0003863,8]
[394788599,1763949044811,-500.0,0.0003863,8]
[394788600,1763949044820,-500.0,0.0003863,8]
[394788601,1763949044829,-509.22237602,0.0003863,8]
[394788602,1763949044839,-500.0,0.0003863,8]
[394788603,1763949044849,-500.0,0.0003863,8]
[394788604,1763949044859,-506.29482033,0.0003863,8]
[394788605,1763949044868,-507.96465957,0.0003863,8]
[394788606,1763949044877,-507.75449759,0.0003863,8]
[394788607,1763949044886,-520.58253044,0.0003863,8]
[394788608,1763949044895,-252.18734789,0.0003863,8]